[Event "Live Chess"]
[Site "Chess.com"]
[Date "2024.06.01"]
[Round "-"]
[White "Larchikov"]
[Black "KyryloPoluliakh"]
[Result "1-0"]
[WhiteElo "1986"]
[BlackElo "1506"]
[TimeControl "300"]
[EndTime "10:36:15 PDT"]
[Termination "Larchikov won by checkmate"]

1. d4 {[%clk 0:04:55.6]} 1... Nf6 {[%clk 0:04:56.8]} 2. c4 {[%clk 0:04:55.5]}
2... g6 {[%clk 0:04:55.5]} 3. Nf3 {[%clk 0:04:54.7]} 3... Bg7 {[%clk 0:04:54.9]}
4. Nc3 {[%clk 0:04:52.6]} 4... O-O {[%clk 0:04:53.9]} 5. e4 {[%clk 0:04:51]}
5... d6 {[%clk 0:04:53.3]} 6. Be2 {[%clk 0:04:47.7]} 6... Nc6 {[%clk 0:04:52]}
7. O-O {[%clk 0:04:45.8]} 7... e5 {[%clk 0:04:50.1]} 8. d5 {[%clk 0:04:44.5]}
8... Ne7 {[%clk 0:04:47.8]} 9. Ne1 {[%clk 0:04:44.1]} 9... Ne8 {[%clk
0:04:45.9]} 10. Nd3 {[%clk 0:04:42.6]} 10... f5 {[%clk 0:04:44.3]} 11. exf5
{[%clk 0:04:40.7]} 11... Nxf5 {[%clk 0:04:40.7]} 12. f3 {[%clk 0:04:38.2]} 12...
Nd4 {[%clk 0:04:37.1]} 13. Ne4 {[%clk 0:04:34.6]} 13... Bf5 {[%clk 0:04:30.6]}
14. Ndf2 {[%clk 0:04:31.3]} 14... Nf6 {[%clk 0:04:09.8]} 15. Bg5 {[%clk
0:04:28.8]} 15... Qc8 {[%clk 0:04:00.5]} 16. Bxf6 {[%clk 0:04:22.4]} 16... Bxf6
{[%clk 0:03:57.2]} 17. Bd3 {[%clk 0:04:19.6]} 17... Bh4 {[%clk 0:03:49]} 18. Qd2
{[%clk 0:04:06.1]} 18... Bxf2+ {[%clk 0:03:45]} 19. Nxf2 {[%clk 0:04:01.9]}
19... Bh3 {[%clk 0:03:32.1]} 20. Nxh3 {[%clk 0:03:54.1]} 20... Rxf3 {[%clk
0:03:22.2]} 21. Ng5 {[%clk 0:03:43.1]} 21... Rxf1+ {[%clk 0:03:17.2]} 22. Rxf1
{[%clk 0:03:43]} 22... Qg4 {[%clk 0:03:07.8]} 23. Nf7 {[%clk 0:03:14.5]} 23...
Kg7 {[%clk 0:02:55.6]} 24. Qh6+ {[%clk 0:03:11.5]} 24... Kg8 {[%clk 0:02:53]}
25. Ng5 {[%clk 0:02:02.1]} 25... Qh5 {[%clk 0:02:42.2]} 26. Qxh5 {[%clk
0:01:57.5]} 26... gxh5 {[%clk 0:02:39.8]} 27. Bxh7+ {[%clk 0:01:54.5]} 27... Kg7
{[%clk 0:02:37.6]} 28. Be4 {[%clk 0:01:51.4]} 28... Rg8 {[%clk 0:02:28]} 29.
Ne6+ {[%clk 0:01:46.4]} 29... Nxe6 {[%clk 0:02:24.8]} 30. dxe6 {[%clk
0:01:46.3]} 30... Re8 {[%clk 0:02:18.7]} 31. Rf7+ {[%clk 0:01:41.6]} 31... Kh8
{[%clk 0:02:12.1]} 32. Bf5 {[%clk 0:01:37.4]} 32... c6 {[%clk 0:02:02]} 33. Rxb7
{[%clk 0:01:32]} 33... d5 {[%clk 0:01:59.7]} 34. e7 {[%clk 0:01:29.7]} 34... d4
{[%clk 0:01:49.4]} 35. Bg6 {[%clk 0:01:24.8]} 35... d3 {[%clk 0:01:38.7]} 36.
Bxe8 {[%clk 0:01:21.9]} 36... d2 {[%clk 0:01:36.9]} 37. Rd7 {[%clk 0:01:20.3]}
37... e4 {[%clk 0:01:33.4]} 38. Bxh5 {[%clk 0:01:18.7]} 38... e3 {[%clk
0:01:31.9]} 39. e8=Q# {[%clk 0:01:18]} 1-0

[Event "Live Chess"]
[Site "Chess.com"]
[Date "2024.06.01"]
[Round "-"]
[White "Richardallis"]
[Black "halfberg"]
[Result "1-0"]
[WhiteElo "1952"]
[BlackElo "1906"]
[TimeControl "300"]
[EndTime "10:36:20 PDT"]
[Termination "Richardallis won by resignation"]

1. d4 {[%clk 0:04:56.4]} 1... Nf6 {[%clk 0:04:57.3]} 2. Nf3 {[%clk 0:04:55.7]}
2... e6 {[%clk 0:04:56.3]} 3. Bg5 {[%clk 0:04:54.9]} 3... b6 {[%clk 0:04:54.1]}
4. Nbd2 {[%clk 0:04:54.2]} 4... Bb7 {[%clk 0:04:51.6]} 5. e4 {[%clk 0:04:53.6]}
5... Be7 {[%clk 0:04:50.4]} 6. Bd3 {[%clk 0:04:45.5]} 6... O-O {[%clk
0:04:48.6]} 7. c3 {[%clk 0:04:44.1]} 7... h6 {[%clk 0:04:48.1]} 8. Bxf6 {[%clk
0:04:42.9]} 8... Bxf6 {[%clk 0:04:46.9]} 9. e5 {[%clk 0:04:42.2]} 9... Be7
{[%clk 0:04:45.1]} 10. Be4 {[%clk 0:04:41.2]} 10... Nc6 {[%clk 0:04:32.7]} 11.
O-O {[%clk 0:04:39.3]} 11... d6 {[%clk 0:04:26.4]} 12. Re1 {[%clk 0:04:30.4]}
12... Qc8 {[%clk 0:04:12.2]} 13. Bb1 {[%clk 0:04:26.4]} 13... Rd8 {[%clk
0:03:59.3]} 14. Qc2 {[%clk 0:04:23.4]} 14... g6 {[%clk 0:03:56.7]} 15. h4 {[%clk
0:04:17.5]} 15... dxe5 {[%clk 0:03:22.3]} 16. dxe5 {[%clk 0:04:14.9]} 16... Qd7
{[%clk 0:03:10.5]} 17. Ne4 {[%clk 0:04:03.4]} 17... Qd5 {[%clk 0:02:52.9]} 18.
h5 {[%clk 0:03:56.6]} 18... g5 {[%clk 0:02:48.9]} 19. Nf6+ {[%clk 0:03:49.5]}
19... Bxf6 {[%clk 0:02:47.4]} 20. Qh7+ {[%clk 0:03:48.6]} 20... Kf8 {[%clk
0:02:44.4]} 21. exf6 {[%clk 0:03:47.9]} 21... Ke8 {[%clk 0:02:33.3]} 22. Be4
{[%clk 0:03:45.9]} 22... Qd6 {[%clk 0:02:27.2]} 23. Rad1 {[%clk 0:03:42.2]}
23... Qf8 {[%clk 0:02:25.3]} 24. Ne5 {[%clk 0:03:30.2]} 24... Nxe5 {[%clk
0:02:20.8]} 25. Bxb7 {[%clk 0:03:28.6]} 25... Rxd1 {[%clk 0:02:16.3]} 26. Rxd1
{[%clk 0:03:22.5]} 26... Rd8 {[%clk 0:02:09.5]} 27. Rd4 {[%clk 0:03:08.2]} 27...
c5 {[%clk 0:01:40.8]} 28. Rxd8+ {[%clk 0:02:58]} 28... Kxd8 {[%clk 0:01:39.5]}
29. Qg7 {[%clk 0:02:52.8]} 29... Nd7 {[%clk 0:01:29.7]} 30. Bc6 {[%clk
0:02:49.7]} 30... Qxg7 {[%clk 0:01:26.7]} 31. fxg7 {[%clk 0:02:48.7]} 31... Nf6
{[%clk 0:01:25]} 32. Be4 {[%clk 0:02:43.3]} 32... Ke7 {[%clk 0:01:21.1]} 33. g4
{[%clk 0:02:39.9]} 33... Ng8 {[%clk 0:01:14.2]} 34. Bh7 {[%clk 0:02:38]} 34...
Nf6 {[%clk 0:01:01.2]} 35. g8=Q {[%clk 0:02:36]} 35... Nxg8 {[%clk 0:00:59.9]}
36. Bxg8 {[%clk 0:02:35.4]} 36... f5 {[%clk 0:00:56.5]} 37. gxf5 {[%clk
0:02:32.3]} 37... exf5 {[%clk 0:00:55.1]} 38. f4 {[%clk 0:02:30]} 38... Kf6
{[%clk 0:00:44.6]} 39. Kf2 {[%clk 0:02:26.4]} 39... gxf4 {[%clk 0:00:41.1]} 40.
Kf3 {[%clk 0:02:25.3]} 40... Kg5 {[%clk 0:00:40.3]} 41. Bf7 {[%clk 0:02:24.8]}
41... Kf6 {[%clk 0:00:29.8]} 42. Be8 {[%clk 0:02:23.5]} 42... Kg5 {[%clk
0:00:24.7]} 43. a4 {[%clk 0:02:21.5]} 43... a6 {[%clk 0:00:18.6]} 44. b3 {[%clk
0:02:19.7]} 44... b5 {[%clk 0:00:17.7]} 45. axb5 {[%clk 0:02:18.6]} 45... axb5
{[%clk 0:00:17]} 46. Bxb5 {[%clk 0:02:17]} 46... Kxh5 {[%clk 0:00:16.6]} 47.
Kxf4 {[%clk 0:02:16.3]} 47... Kg6 {[%clk 0:00:15.7]} 48. Bd3 {[%clk 0:02:14.8]}
48... h5 {[%clk 0:00:12.8]} 49. Bxf5+ {[%clk 0:02:13.9]} 49... Kf6 {[%clk
0:00:12.5]} 50. Bh3 {[%clk 0:02:11.5]} 1-0

[Event "Live Chess"]
[Site "Chess.com"]
[Date "2024.06.01"]
[Round "-"]
[White "road2gm5000"]
[Black "powerchs"]
[Result "1-0"]
[WhiteElo "1073"]
[BlackElo "1242"]
[TimeControl "300"]
[EndTime "10:36:24 PDT"]
[Termination "road2gm5000 won by resignation"]

1. e4 {[%clk 0:04:58.2]} 1... c5 {[%clk 0:04:58.2]} 2. Nf3 {[%clk 0:04:57.1]}
2... d6 {[%clk 0:04:57.3]} 3. Bb5+ {[%clk 0:04:56.3]} 3... Nc6 {[%clk
0:04:55.3]} 4. Bxc6+ {[%clk 0:04:55.3]} 4... bxc6 {[%clk 0:04:53.9]} 5. d3
{[%clk 0:04:54.8]} 5... e6 {[%clk 0:04:52.5]} 6. O-O {[%clk 0:04:54]} 6... Be7
{[%clk 0:04:51.6]} 7. Bd2 {[%clk 0:04:50.1]} 7... Nf6 {[%clk 0:04:50.2]} 8. Na3
{[%clk 0:04:48.8]} 8... O-O {[%clk 0:04:47.9]} 9. Nc4 {[%clk 0:04:47.3]} 9... d5
{[%clk 0:04:46.2]} 10. exd5 {[%clk 0:04:42.3]} 10... cxd5 {[%clk 0:04:43.7]} 11.
Ne3 {[%clk 0:04:40.9]} 11... Bd6 {[%clk 0:04:41.6]} 12. Re1 {[%clk 0:04:35.5]}
12... Qc7 {[%clk 0:04:40.4]} 13. g3 {[%clk 0:04:31.5]} 13... e5 {[%clk 0:04:36]}
14. Ng2 {[%clk 0:04:23.2]} 14... Bg4 {[%clk 0:04:34.2]} 15. Bg5 {[%clk
0:04:16.2]} 15... e4 {[%clk 0:04:32]} 16. dxe4 {[%clk 0:04:14.7]} 16... dxe4
{[%clk 0:04:31]} 17. Bxf6 {[%clk 0:04:13.5]} 17... exf3 {[%clk 0:04:29.7]} 18.
Ne3 {[%clk 0:04:11.7]} 18... Bh3 {[%clk 0:04:21.5]} 19. Bc3 {[%clk 0:04:05.7]}
19... Rad8 {[%clk 0:04:16.2]} 20. Qxf3 {[%clk 0:04:04.5]} 20... Be5 {[%clk
0:03:49.1]} 21. Bxe5 {[%clk 0:04:00.3]} 21... Qxe5 {[%clk 0:03:47.2]} 22. b3
{[%clk 0:03:55.9]} 22... Rfe8 {[%clk 0:03:35.3]} 23. Rad1 {[%clk 0:03:53]} 23...
Rxd1 {[%clk 0:03:23.4]} 24. Rxd1 {[%clk 0:03:52.9]} 24... Qc3 {[%clk 0:03:22]}
25. Qc6 {[%clk 0:03:38.6]} 25... Rf8 {[%clk 0:03:14.6]} 26. Qa4 {[%clk 0:03:30]}
26... a5 {[%clk 0:03:10.5]} 27. Qc4 {[%clk 0:03:26.7]} 27... Qf6 {[%clk
0:03:03.4]} 28. Qxc5 {[%clk 0:03:11.2]} 28... Qf3 {[%clk 0:03:01.2]} 29. Qd5
{[%clk 0:03:10.6]} 29... Qf6 {[%clk 0:02:51.5]} 30. Qxa5 {[%clk 0:02:56.8]}
30... h6 {[%clk 0:02:50]} 31. Qd5 {[%clk 0:02:52.6]} 31... Re8 {[%clk 0:02:48]}
32. a4 {[%clk 0:02:38.3]} 32... Re5 {[%clk 0:02:42.4]} 33. Qd4 {[%clk
0:02:35.8]} 33... Qf3 {[%clk 0:02:33.3]} 34. Qxe5 {[%clk 0:02:27.9]} 1-0

[Event "Live Chess"]
[Site "Chess.com"]
[Date "2024.06.01"]
[Round "-"]
[White "McFim"]
[Black "WilliamofOrange16th"]
[Result "0-1"]
[WhiteElo "1586"]
[BlackElo "1951"]
[TimeControl "300"]
[EndTime "10:36:49 PDT"]
[Termination "WilliamofOrange16th won by resignation"]

1. e4 {[%clk 0:04:56.6]} 1... d6 {[%clk 0:04:59]} 2. d4 {[%clk 0:04:54.9]} 2...
Nf6 {[%clk 0:04:57.6]} 3. Nc3 {[%clk 0:04:48.9]} 3... Nbd7 {[%clk 0:04:55.2]} 4.
Nf3 {[%clk 0:04:47.8]} 4... e5 {[%clk 0:04:48.2]} 5. dxe5 {[%clk 0:04:39.3]}
5... dxe5 {[%clk 0:04:46.8]} 6. Bc4 {[%clk 0:04:37.7]} 6... Be7 {[%clk
0:04:45.4]} 7. Bxf7+ {[%clk 0:04:09.3]} 7... Kxf7 {[%clk 0:04:43.7]} 8. Ng5+
{[%clk 0:04:08.6]} 8... Kg8 {[%clk 0:04:27.1]} 9. Ne6 {[%clk 0:04:06.7]} 9...
Qe8 {[%clk 0:04:26.1]} 10. Nxc7 {[%clk 0:04:04.7]} 10... Qg6 {[%clk 0:04:25.8]}
11. O-O {[%clk 0:03:54.8]} 11... Rb8 {[%clk 0:04:24.2]} 12. N7d5 {[%clk
0:03:47.8]} 12... Bd8 {[%clk 0:04:23]} 13. f4 {[%clk 0:03:35.1]} 13... Qf7
{[%clk 0:04:11.9]} 14. fxe5 {[%clk 0:02:53.3]} 14... Nxe5 {[%clk 0:04:10.8]} 15.
Bf4 {[%clk 0:02:50.3]} 15... Qe6 {[%clk 0:04:06.4]} 16. Qd4 {[%clk 0:02:32.4]}
16... Nc6 {[%clk 0:04:05.5]} 17. Qa4 {[%clk 0:02:00]} 17... Ra8 {[%clk
0:03:57.7]} 18. Rae1 {[%clk 0:01:18.5]} 18... h6 {[%clk 0:03:55.5]} 19. Nxf6+
{[%clk 0:00:46.6]} 19... Bxf6 {[%clk 0:03:55.4]} 20. e5 {[%clk 0:00:44.7]} 20...
Be7 {[%clk 0:03:51.1]} 21. Nb5 {[%clk 0:00:35.1]} 21... Bc5+ {[%clk 0:03:35.7]}
22. Kh1 {[%clk 0:00:33.6]} 22... Bb6 {[%clk 0:03:35.6]} 23. Rd1 {[%clk 0:00:30]}
23... Kh7 {[%clk 0:03:32.2]} 24. Rd6 {[%clk 0:00:24.1]} 24... Qf5 {[%clk
0:03:25.1]} 25. g4 {[%clk 0:00:17.6]} 25... Qxg4 {[%clk 0:03:18.6]} 26. Qe4+
{[%clk 0:00:12.1]} 26... Bf5 {[%clk 0:03:15.5]} 27. Qe1 {[%clk 0:00:11.1]} 27...
g5 {[%clk 0:03:02.4]} 28. Bg3 {[%clk 0:00:10]} 28... Be4+ {[%clk 0:03:01.2]} 0-1

[Event "Live Chess"]
[Site "Chess.com"]
[Date "2024.06.01"]
[Round "-"]
[White "Ocelot32"]
[Black "febray_27"]
[Result "0-1"]
[WhiteElo "1386"]
[BlackElo "1990"]
[TimeControl "300"]
[EndTime "10:36:53 PDT"]
[Termination "febray_27 won by resignation"]

1. e4 {[%clk 0:04:55.7]} 1... c5 {[%clk 0:04:58.9]} 2. Nf3 {[%clk 0:04:54.2]}
2... e6 {[%clk 0:04:58.2]} 3. c3 {[%clk 0:04:53.1]} 3... Nc6 {[%clk 0:04:56.1]}
4. d4 {[%clk 0:04:52.3]} 4... cxd4 {[%clk 0:04:55.6]} 5. cxd4 {[%clk 0:04:51.2]}
5... d5 {[%clk 0:04:55.5]} 6. e5 {[%clk 0:04:49.8]} 6... Nge7 {[%clk 0:04:53.9]}
7. Bd3 {[%clk 0:04:48.8]} 7... g6 {[%clk 0:04:51.6]} 8. O-O {[%clk 0:04:45.3]}
8... Bg7 {[%clk 0:04:51]} 9. Nc3 {[%clk 0:04:43.6]} 9... O-O {[%clk 0:04:50.3]}
10. a3 {[%clk 0:04:42.3]} 10... a6 {[%clk 0:04:49.8]} 11. Bg5 {[%clk 0:04:39.9]}
11... b5 {[%clk 0:04:47.2]} 12. Rc1 {[%clk 0:04:37.5]} 12... Na5 {[%clk
0:04:46.4]} 13. Nd2 {[%clk 0:04:16.1]} 13... Qd7 {[%clk 0:04:44.3]} 14. b4
{[%clk 0:04:11.1]} 14... Nc4 {[%clk 0:04:43.3]} 15. Nxc4 {[%clk 0:04:09.4]}
15... bxc4 {[%clk 0:04:39.3]} 16. Bc2 {[%clk 0:04:06.6]} 16... Nf5 {[%clk
0:04:35.9]} 17. Bxf5 {[%clk 0:04:03.5]} 17... exf5 {[%clk 0:04:34.9]} 18. Re1
{[%clk 0:04:00.7]} 18... h6 {[%clk 0:04:29.3]} 19. Be3 {[%clk 0:03:47.8]} 19...
g5 {[%clk 0:04:22.2]} 20. Qf3 {[%clk 0:03:44.4]} 20... f4 {[%clk 0:04:20.2]} 21.
Bd2 {[%clk 0:03:42.4]} 21... Bb7 {[%clk 0:04:19.3]} 22. Qd1 {[%clk 0:03:31]}
22... Qf5 {[%clk 0:04:06.7]} 23. Na4 {[%clk 0:03:28.2]} 23... Bc6 {[%clk
0:03:59]} 24. Nc5 {[%clk 0:03:26.9]} 24... g4 {[%clk 0:03:50.8]} 25. Qe2 {[%clk
0:03:07.2]} 25... f3 {[%clk 0:03:45.4]} 26. Qe3 {[%clk 0:03:05.9]} 26... fxg2
{[%clk 0:03:40.4]} 27. e6 {[%clk 0:03:04.6]} 27... fxe6 {[%clk 0:03:19]} 28.
Nxe6 {[%clk 0:03:02.3]} 28... Rae8 {[%clk 0:03:05.8]} 29. Qg3 {[%clk 0:02:31.1]}
29... Rxe6 {[%clk 0:02:59.4]} 30. Qh4 {[%clk 0:02:27]} 30... Rxe1+ {[%clk
0:02:55.5]} 31. Rxe1 {[%clk 0:02:25.7]} 31... Bxd4 {[%clk 0:02:47]} 32. Bxh6
{[%clk 0:02:18]} 32... Bxf2+ {[%clk 0:02:42.6]} 33. Kxg2 {[%clk 0:02:13.7]}
33... Qf3+ {[%clk 0:02:38.6]} 34. Kf1 {[%clk 0:02:08.6]} 0-1

[Event "Live Chess"]
[Site "Chess.com"]
[Date "2024.06.01"]
[Round "-"]
[White "almalikhari"]
[Black "FlyingChessKestrel13"]
[Result "0-1"]
[WhiteElo "2303"]
[BlackElo "2109"]
[TimeControl "300"]
[EndTime "10:37:04 PDT"]
[Termination "FlyingChessKestrel13 won by resignation"]

1. e4 {[%clk 0:04:58.3]} 1... e5 {[%clk 0:04:58.6]} 2. Nf3 {[%clk 0:04:56.4]}
2... Nf6 {[%clk 0:04:58]} 3. d4 {[%clk 0:04:53.2]} 3... Nxe4 {[%clk 0:04:53]} 4.
dxe5 {[%clk 0:04:52]} 4... Bc5 {[%clk 0:04:51.9]} 5. Bc4 {[%clk 0:04:50.4]} 5...
Nxf2 {[%clk 0:04:49.2]} 6. Bxf7+ {[%clk 0:04:43.7]} 6... Kf8 {[%clk 0:04:44.6]}
7. Qd5 {[%clk 0:04:35]} 7... d6 {[%clk 0:04:42.4]} 8. Rf1 {[%clk 0:04:29.9]}
8... c6 {[%clk 0:04:37.9]} 9. Qb3 {[%clk 0:04:24]} 9... d5 {[%clk 0:04:33.6]}
10. e6 {[%clk 0:04:21.8]} 10... Qe7 {[%clk 0:04:32.8]} 11. Rxf2 {[%clk
0:04:17.9]} 11... Bxf2+ {[%clk 0:04:31]} 12. Kxf2 {[%clk 0:04:17.8]} 12... Na6
{[%clk 0:04:24.9]} 13. Bg5 {[%clk 0:04:14.4]} 13... Qc5+ {[%clk 0:04:22.2]} 14.
Be3 {[%clk 0:04:12.7]} 14... Qe7 {[%clk 0:04:19.6]} 15. Bg5 {[%clk 0:04:11.8]}
15... Qc5+ {[%clk 0:04:18.2]} 16. Be3 {[%clk 0:04:10.8]} 16... Qe7 {[%clk
0:04:17.2]} 17. c4 {[%clk 0:04:09.8]} 17... Bxe6 {[%clk 0:04:12.8]} 18. Bxe6
{[%clk 0:04:05.5]} 18... Qxe6 {[%clk 0:04:10.8]} 19. Qxb7 {[%clk 0:04:04.9]}
19... Qc8 {[%clk 0:04:09.4]} 20. Qb3 {[%clk 0:03:56.5]} 20... Rb8 {[%clk
0:04:04.2]} 21. Qa3+ {[%clk 0:03:54.7]} 21... Kf7 {[%clk 0:04:02.2]} 22. Qxa6
{[%clk 0:03:53.3]} 22... Qxa6 {[%clk 0:04:00.4]} 23. cxd5 {[%clk 0:03:52.5]}
23... cxd5 {[%clk 0:03:58.3]} 24. b3 {[%clk 0:03:51.5]} 24... Rhf8 {[%clk
0:03:55.8]} 25. Nc3 {[%clk 0:03:48.8]} 25... Kg8 {[%clk 0:03:52.1]} 26. Nxd5
{[%clk 0:03:46.8]} 26... Qd3 {[%clk 0:03:45.6]} 27. Ne7+ {[%clk 0:03:44.3]}
27... Kh8 {[%clk 0:03:44.2]} 28. Rc1 {[%clk 0:03:42.8]} 28... Rbe8 {[%clk
0:03:38.4]} 29. Rc7 {[%clk 0:03:39.5]} 29... Qd6 {[%clk 0:03:33.6]} 30. Rc1
{[%clk 0:03:26.6]} 30... Qxe7 {[%clk 0:03:31.5]} 0-1

[Event "Live Chess"]
[Site "Chess.com"]
[Date "2024.06.01"]
[Round "-"]
[White "Enhard"]
[Black "TigerTank70"]
[Result "0-1"]
[WhiteElo "1414"]
[BlackElo "2180"]
[TimeControl "300"]
[EndTime "10:37:12 PDT"]
[Termination "TigerTank70 won by resignation"]

1. d4 {[%clk 0:04:56.6]} 1... d5 {[%clk 0:04:58.7]} 2. Bf4 {[%clk 0:04:55.8]}
2... h5 {[%clk 0:04:56.6]} 3. e3 {[%clk 0:04:52.4]} 3... e5 {[%clk 0:04:55.8]}
4. dxe5 {[%clk 0:04:51.3]} 4... g5 {[%clk 0:04:54.4]} 5. Bg3 {[%clk 0:04:47.9]}
5... h4 {[%clk 0:04:53.3]} 6. Bxh4 {[%clk 0:04:45.7]} 6... gxh4 {[%clk
0:04:49.2]} 7. h3 {[%clk 0:04:44.4]} 7... Nc6 {[%clk 0:04:45.7]} 8. Nf3 {[%clk
0:04:41.9]} 8... Bf5 {[%clk 0:04:40.2]} 9. Bb5 {[%clk 0:04:39.8]} 9... Ne7
{[%clk 0:04:32.5]} 10. Nbd2 {[%clk 0:04:36]} 10... Qd7 {[%clk 0:04:26.2]} 11.
Nb3 {[%clk 0:04:30.5]} 11... Ng6 {[%clk 0:04:16.2]} 12. Nbd4 {[%clk 0:04:25.6]}
12... Be4 {[%clk 0:04:06.7]} 13. Bxc6 {[%clk 0:04:17.6]} 13... bxc6 {[%clk
0:04:05.5]} 14. Nd2 {[%clk 0:04:06.9]} 14... Nxe5 {[%clk 0:03:59.7]} 15. Nxe4
{[%clk 0:04:03.7]} 15... dxe4 {[%clk 0:03:59.6]} 16. b3 {[%clk 0:03:56.7]} 16...
Rg8 {[%clk 0:03:55.7]} 17. g4 {[%clk 0:03:28.8]} 17... hxg3 {[%clk 0:03:51.6]}
18. fxg3 {[%clk 0:03:26.8]} 18... Rxg3 {[%clk 0:03:47.5]} 19. Qe2 {[%clk
0:03:25.1]} 19... Bb4+ {[%clk 0:03:42.7]} 20. Kd1 {[%clk 0:03:13.6]} 20... Bc3
{[%clk 0:03:34.2]} 21. Rb1 {[%clk 0:03:03.8]} 21... Bxd4 {[%clk 0:03:33]} 22.
exd4 {[%clk 0:02:58.1]} 22... Qxd4+ {[%clk 0:03:32.9]} 23. Qd2 {[%clk
0:02:55.6]} 23... O-O-O {[%clk 0:03:31]} 24. Qxd4 {[%clk 0:02:54.4]} 24... Rxd4+
{[%clk 0:03:30.9]} 25. Ke2 {[%clk 0:02:53.2]} 0-1

[Event "Live Chess"]
[Site "Chess.com"]
[Date "2024.06.01"]
[Round "-"]
[White "halfberg"]
[Black "road2gm5000"]
[Result "1-0"]
[WhiteElo "1906"]
[BlackElo "1073"]
[TimeControl "300"]
[EndTime "10:37:14 PDT"]
[Termination "halfberg won by resignation"]

1. e4 {[%clk 0:04:57.2]} 1... c6 {[%clk 0:04:58.7]} 2. d4 {[%clk 0:04:55.4]}
2... d5 {[%clk 0:04:57.9]} 3. Nc3 {[%clk 0:04:54.6]} 3... dxe4 {[%clk
0:04:56.3]} 4. Nxe4 {[%clk 0:04:54.2]} 4... Nf6 {[%clk 0:04:55.7]} 5. Nxf6+
{[%clk 0:04:51.1]} 5... exf6 {[%clk 0:04:55.6]} 6. Nf3 {[%clk 0:04:49.3]} 6...
Bg4 {[%clk 0:04:54.7]} 7. Be2 {[%clk 0:04:47.9]} 7... c5 {[%clk 0:04:53.7]} 8.
c3 {[%clk 0:04:43.5]} 8... cxd4 {[%clk 0:04:50.3]} 9. cxd4 {[%clk 0:04:42.1]}
9... Nc6 {[%clk 0:04:48.6]} 10. O-O {[%clk 0:04:40.2]} 10... Bxf3 {[%clk
0:04:46.9]} 11. Bxf3 {[%clk 0:04:38.5]} 11... Qxd4 {[%clk 0:04:46.5]} 12. Bxc6+
{[%clk 0:04:36.2]} 1-0

[Event "Live Chess"]
[Site "Chess.com"]
[Date "2024.06.01"]
[Round "-"]
[White "kylet1990"]
[Black "Crowded_House"]
[Result "0-1"]
[WhiteElo "724"]
[BlackElo "1756"]
[TimeControl "300"]
[EndTime "10:37:15 PDT"]
[Termination "Crowded_House won by resignation"]

1. e4 {[%clk 0:04:58.5]} 1... e6 {[%clk 0:04:59]} 2. d4 {[%clk 0:04:52.6]} 2...
d5 {[%clk 0:04:58.4]} 3. exd5 {[%clk 0:04:50.6]} 3... exd5 {[%clk 0:04:57.6]} 4.
Bf4 {[%clk 0:04:47.3]} 4... Bd6 {[%clk 0:04:56.1]} 5. Bg3 {[%clk 0:04:44.7]}
5... Ne7 {[%clk 0:04:53.7]} 6. Nc3 {[%clk 0:04:41.4]} 6... c6 {[%clk 0:04:52.1]}
7. Bd3 {[%clk 0:04:33.5]} 7... O-O {[%clk 0:04:50.5]} 8. Nf3 {[%clk 0:04:26.3]}
8... Re8 {[%clk 0:04:49.4]} 9. Ng5 {[%clk 0:03:57.2]} 9... Ng6+ {[%clk
0:04:42.5]} 10. Ne2 {[%clk 0:03:48.1]} 10... Bxg3 {[%clk 0:04:38]} 11. hxg3
{[%clk 0:03:45.2]} 11... Qxg5 {[%clk 0:04:32.9]} 12. f4 {[%clk 0:03:32.6]} 12...
Qxg3+ {[%clk 0:04:15.8]} 13. Kd2 {[%clk 0:03:23.9]} 13... Qe3+ {[%clk 0:04:08]}
14. Ke1 {[%clk 0:03:14.5]} 14... h6 {[%clk 0:03:57.3]} 15. Bxg6 {[%clk
0:03:09.5]} 15... fxg6 {[%clk 0:03:55.6]} 16. Rh3 {[%clk 0:03:00.8]} 16... Bxh3
{[%clk 0:03:52.9]} 17. gxh3 {[%clk 0:02:58.5]} 0-1

[Event "Live Chess"]
[Site "Chess.com"]
[Date "2024.06.01"]
[Round "-"]
[White "Velocity"]
[Black "elephantgerrald"]
[Result "1-0"]
[WhiteElo "1710"]
[BlackElo "756"]
[TimeControl "300"]
[EndTime "10:37:36 PDT"]
[Termination "Velocity won by checkmate"]

1. e4 {[%clk 0:04:59.8]} 1... e5 {[%clk 0:04:58.6]} 2. Nf3 {[%clk 0:04:59.4]}
2... Nf6 {[%clk 0:04:56.4]} 3. d4 {[%clk 0:04:58.4]} 3... exd4 {[%clk
0:04:55.3]} 4. e5 {[%clk 0:04:58.3]} 4... Ng4 {[%clk 0:04:53.3]} 5. Qxd4 {[%clk
0:04:57.4]} 5... d6 {[%clk 0:04:47.5]} 6. exd6 {[%clk 0:04:55.9]} 6... Bxd6
{[%clk 0:04:45.4]} 7. Bb5+ {[%clk 0:04:53.5]} 7... Nc6 {[%clk 0:04:43.5]} 8.
Bxc6+ {[%clk 0:04:52.2]} 8... bxc6 {[%clk 0:04:41.8]} 9. Qxg7 {[%clk 0:04:48.7]}
9... Qe7+ {[%clk 0:04:34.5]} 10. Be3 {[%clk 0:04:44.6]} 10... Be5 {[%clk
0:04:28.1]} 11. Nxe5 {[%clk 0:04:38.6]} 11... Qxe5 {[%clk 0:04:21.3]} 12. Qxe5+
{[%clk 0:04:36.4]} 12... Nxe5 {[%clk 0:04:19.6]} 13. Bd4 {[%clk 0:04:35.5]}
13... f6 {[%clk 0:04:16.9]} 14. f4 {[%clk 0:04:31.7]} 14... Nd7 {[%clk 0:04:12]}
15. O-O {[%clk 0:04:30.3]} 15... Ba6 {[%clk 0:04:09.1]} 16. Re1+ {[%clk
0:04:28.9]} 16... Kf7 {[%clk 0:04:04.4]} 17. Nc3 {[%clk 0:04:24.9]} 17... c5
{[%clk 0:04:01.1]} 18. Bf2 {[%clk 0:04:22.4]} 18... Nf8 {[%clk 0:03:56.8]} 19.
Ne4 {[%clk 0:04:21.2]} 19... Ng6 {[%clk 0:03:49.1]} 20. Nxc5 {[%clk 0:04:18.9]}
20... Nxf4 {[%clk 0:03:45.2]} 21. Nxa6 {[%clk 0:04:17]} 21... Rhd8 {[%clk
0:03:40.8]} 22. Nxc7 {[%clk 0:04:12.3]} 22... Rac8 {[%clk 0:03:39.3]} 23. Nb5
{[%clk 0:04:04.7]} 23... Rxc2 {[%clk 0:03:33.3]} 24. Nxa7 {[%clk 0:04:00.1]}
24... Rg8 {[%clk 0:03:19.3]} 25. Bg3 {[%clk 0:03:35.1]} 25... Rxg2+ {[%clk
0:03:10.6]} 26. Kh1 {[%clk 0:03:34.3]} 26... Rg4 {[%clk 0:02:59.6]} 27. Bxf4
{[%clk 0:03:33.4]} 27... Rxf4 {[%clk 0:02:57.8]} 28. Kxg2 {[%clk 0:03:33.3]}
28... Rg4+ {[%clk 0:02:56.4]} 29. Kh3 {[%clk 0:03:30.7]} 29... Rg5 {[%clk
0:02:45.2]} 30. Rac1 {[%clk 0:03:26.1]} 30... Rh5+ {[%clk 0:02:43.7]} 31. Kg3
{[%clk 0:03:24.8]} 31... Rg5+ {[%clk 0:02:41.7]} 32. Kf4 {[%clk 0:03:22.6]}
32... h6 {[%clk 0:02:40.1]} 33. Rc7+ {[%clk 0:03:20.5]} 33... Kg6 {[%clk
0:02:38.4]} 34. Ree7 {[%clk 0:03:19.1]} 34... Rf5+ {[%clk 0:02:35.9]} 35. Ke4
{[%clk 0:03:17.2]} 35... Kh5 {[%clk 0:02:32.2]} 36. Kxf5 {[%clk 0:03:14.2]}
36... Kh4 {[%clk 0:02:27]} 37. Re3 {[%clk 0:03:13.3]} 37... Kh5 {[%clk
0:02:25.5]} 38. Rh3# {[%clk 0:03:12.2]} 1-0